Workbook

Sheet Kellogg valuation template
A1: KELLOGG CASH FLOW VALUATION TEMPLATE
A2: Current free cash flow (FCF) | B2: ='Kellogg CSCF'!B46 -> 1138.333141
A3: Growth rate of FCF, years 1-5 | B3: 0.08
A4: Long-term FCF growth rate | B4: 0.02
A5: Weighted average cost of capital, WACC | B5: ='Kellogg WACC'!B23 -> 0.05503857585
A7: Year | B7: End 2011 | C7: 2012 | D7: 2013 | E7: 2014 | F7: 2015 | G7: 2016
A8: FCF | C8: =B2*(1+B3) -> 1229.399792 | D8: =C8*(1+$B$3) -> 1327.751776 | E8: =D8*(1+$B$3) -> 1433.971918 | F8: 1548.689671 | G8: 1672.584845 | H8: =getformula(G8) -> <-- =F8*(1+$B$3)
A9: Terminal value | G9: =G8*(1+B4)/(B5-B4) -> 48690.23641 | H9: =getformula(G9) -> <-- =G8*(1+B4)/(B5-B4)
A10: Total (sum of FCF+terminal) | C10: =SUM(C8:C9) -> 1229.399792 | D10: =SUM(D8:D9) -> 1327.751776 | E10: 1433.971918 | F10: 1548.689671 | G10: 50362.82125 | H10: <-- =SUM(G8:G9)
A12: Enterprise value | B12: =NPV(B5,C10:G10) -> 43356.38182 | C12: =getformula(B12) -> <-- =NPV(B5,C10:G10)
A13: Add back initial cash | B13: ='Kellogg balance sheet'!B5 -> 460 | C13: =getformula(B13) -> <-- ='Kellogg balance sheet'!B5
A14: Subtract out debt | B14: ='Kellogg balance sheet'!B17+'Kellogg balance sheet'!B18+'Kellogg balance sheet'!B22+'Kellogg balance sheet'!B23+'Kellogg balance sheet'!B24+'Kellogg balance sheet'!B25 -> 7821 | C14: <-- ='Kellogg balance sheet'!B17+'Kellogg balance sheet'!B18+'Kellogg balance sheet'!B22+'Kellogg balance sheet'!B23+'Kellogg balance sheet'!B24+'Kellogg balance sheet'!B25
A15: Equity value | B15: =B12+B13-B14 -> 35995.38182 | C15: <-- =B12+B13-B14
A16: Number of shares outstanding | B16: ='Kellogg WACC'!B2 -> 357.3 | C16: <-- ='Kellogg WACC'!B2
A17: Share value from our model | B17: =B15/B16 -> 100.7427423 | C17: <-- =B15/B16
A18: Actual stock price (30 Dec 2011) | B18: 50.57 | C18: <-- 50.57
A20: ="Data table: Model share price as function of LT growth and WACC"&", short-term FCF growth rate = "&TEXT(B3,"0%")&CHAR(10)&"Highlighted: model prices within 20% of actual market price of "&TEXT(B18,"$0.00") -> Data table: Model share price as function of LT growth and WACC, short-term FCF growth rate = 8% Highlighted: model prices within 20% of actual market price of $50.57
C21: Long-term growth rate ↓
A22: =gggetformula(B22) -> =IF(B5>B4,B17,"NMF") --> | B22: =IF(B5>B4,B17,"NMF") -> 100.7427423 | C22: 0 | D22: =C22+3% -> 0.03 | E22: =D22+3% -> 0.06 | F22: 0.09 | G22: 0.12
B23: 0.025 | C23: 163.5823742 | D23: NMF | E23: NMF | F23: NMF | G23: NMF
B24: 0.03 | C24: 132.4043361 | D24: NMF | E24: NMF | F24: NMF | G24: NMF
B25: 0.035 | C25: 110.1423237 | D25: 809.4639325 | E25: NMF | F25: NMF | G25: NMF
A26: WACC --> | B26: 0.04 | C26: 93.45265029 | D26: 393.5644335 | E26: NMF | F26: NMF | G26: NMF
B27: 0.045 | C27: 80.47771678 | D27: 254.9423739 | E27: NMF | F27: NMF | G27: NMF
B28: 0.05 | C28: 70.10296795 | D28: 185.6394659 | E28: NMF | F28: NMF | G28: NMF
B29: 0.055 | C29: 61.61914506 | D29: 144.0640571 | E29: NMF | F29: NMF | G29: NMF
B30: 0.06 | C30: 54.55341218 | D30: 116.3522673 | E30: NMF | F30: NMF | G30: NMF
B31: 0.065 | C31: 48.57842424 | D31: 96.56243699 | E31: 720.3546026 | F31: NMF | G31: NMF
B32: 0.07 | C32: 43.46036595 | D32: 81.72373916 | E32: 349.5673516 | F32: NMF | G32: NMF
B33: 0.075 | C33: 39.02777505 | D33: 70.18571685 | E33: 225.9754258 | F33: NMF | G33: NMF
B34: 0.08 | C34: 35.152057 | D34: 60.95809797 | E34: 164.1822619 | F34: NMF | G34: NMF
B35: 0.085 | C35: 31.73487668 | D35: 53.41071125 | E35: 127.1085488 | F35: NMF | G35: NMF

Sheet Kellogg income statement
A1: Kellogg Company and Subsidiaries
A2: INCOME STATEMENT (millions except share data)
B4: 2011 | C4: 2010 | D4: 2009
A5: Net sales | B5: 13198 | C5: 12397 | D5: 12575
A6: Cost of goods sold | B6: 7750 | C6: 7108 | D6: 7184
A7: Selling, general and administrative expense | B7: 3472 | C7: 3299 | D7: 3390
A8: Operating profit | B8: 1976 | C8: 1990 | D8: 2001
A9: Interest expense | B9: 233 | C9: 248 | D9: 295
A10: Other income (expense), net | B10: -11 | C10: — | D10: -22
A11: Income before income taxes | B11: 1732 | C11: 1742 | D11: 1684
A12: Income taxes | B12: 503 | C12: 502 | D12: 476
A13: Net income | B13: 1229 | C13: 1240 | D13: 1208
A14: Net loss attributable to noncontrolling interests | B14: -2 | C14: -7 | D14: -4
A15: Net income attributable to Kellogg Company | B15: 1231 | C15: 1247 | D15: 1212
A17: Per share amounts:
A18: Basic | B18: 3.4 | C18: 3.32 | D18: 3.17
A19: Diluted | B19: 3.38 | C19: 3.3 | D19: 3.16
A20: Dividends per share | B20: 1.67 | C20: 1.56 | D20: 1.43

Sheet Kellogg balance sheet
A1: Kellogg Company and Subsidiaries
A2: CONSOLIDATED BALANCE SHEET (millions except share data)
B3: 2011 | C3: 2010
A4: Current assets
A5: Cash and cash equivalents | B5: 460 | C5: 444
A6: Accounts receivable, net | B6: 1188 | C6: 1190
A7: Inventories | B7: 1132 | C7: 1056
A8: Other current assets | B8: 247 | C8: 225
A9: Total current assets | B9: 3027 | C9: 2915
A10: Property, net | B10: 3281 | C10: 3128
A11: Goodwill | B11: 3623 | C11: 3628
A12: Other intangibles, net | B12: 1454 | C12: 1456
A13: Other assets | B13: 516 | C13: 720
A14: Total assets | B14: 11901 | C14: 11847
A16: Current liabilities
A17: Current maturities of long-term debt | B17: 761 | C17: 952
A18: Notes payable | B18: 234 | C18: 44
A19: Accounts payable | B19: 1189 | C19: 1149
A20: Other current liabilities | B20: 1129 | C20: 1039
A21: Total current liabilities | B21: 3313 | C21: 3184
A22: Long-term debt | B22: 5037 | C22: 4908
A23: Deferred income taxes | B23: 637 | C23: 697
A24: Pension liability | B24: 560 | C24: 265
A25: Other liabilities | B25: 592 | C25: 639
A26: Commitments and contingencies
A27: Equity
A28: Common stock, $.25 par value, 1,000,000,000 shares authorized
A29: Issued: 419,484,087 shares in 2011 and 419,272,027 shares in 2010 | B29: 105 | C29: 105
A30: Capital in excess of par value | B30: 522 | C30: 495
A31: Retained earnings | B31: 6721 | C31: 6122
A32: Treasury stock at cost
A33: 62,182,500 shares in 2011 and 53,667,635 shares in 2010 | B33: -3130 | C33: -2650
A34: Accumulated other comprehensive income (loss) | B34: -2458 | C34: -1914
A35: Total Kellogg Company equity | B35: 1760 | C35: 2158
A36: Noncontrolling interests | B36: 2 | C36: -4
A37: Total equity | B37: 1762 | C37: 2154
A38: Total liabilities and equity | B38: 11901 | C38: 11847
A41: Net shares outstanding | B41: =419484087-62182500 -> 357301587 | C41: =419272027-53667635 -> 365604392 | D41: =getformula(C41) -> <-- =419272027-53667635

Sheet Kellogg CSCF
A1: Kellogg Company and Subsidiaries
A2: CONSOLIDATED STATEMENT OF CASH FLOWS (millions)
A4: Operating activities | B4: 2011 | C4: 2010 | D4: 2009
A5: Net income | B5: 1229 | C5: 1240 | D5: 1208
A6: Adjustments to reconcile net income to operating cash flows:
A7: Depreciation and amortization | B7: 369 | C7: 392 | D7: 384
A8: Deferred income taxes | B8: 84 | C8: 266 | D8: -40
A9: Other | B9: -22 | C9: 97 | D9: 13
A10: Postretirement benefit plan contributions | B10: -192 | C10: -643 | D10: -100
A11: Changes in operating assets and liabilities:
A12: Trade receivables | B12: -100 | C12: 59 | D12: -75
A13: Inventories | B13: -76 | C13: -146 | D13: -13
A14: Accounts payable | B14: 40 | C14: 72 | D14: -59
A15: Accrued income taxes | B15: 132 | C15: -192 | D15: 112
A16: Accrued interest expense
A17: Accrued and prepaid advertising, promotion and trade allowances | B17: 4 | C17: -12 | D17: 91
A18: Accrued salaries and wages | B18: 89 | C18: -169 | D18: 42
A19: All other current assets and liabilities | B19: 45 | C19: 35 | D19: 85
A20: Net cash provided by operating activities | B20: =SUM(B5:B19) -> 1602 | C20: =SUM(C5:C19) -> 999 | D20: =SUM(D5:D19) -> 1648
A22: Investing activities | B22: 2011 | C22: 2010 | D22: 2009
A23: Additions to properties | B23: -594 | C23: -474 | D23: -377
A24: Other
A25: Net cash used in investing activities | B25: =SUM(B23:B24) -> -594 | C25: =SUM(C23:C24) -> -474 | D25: =SUM(D23:D24) -> -377 | E25: =getformula(D25) -> <-- =SUM(D23:D24)
A27: Financing activities | B27: 2011 | C27: 2010 | D27: 2009
A28: Net increase (reduction) of notes payable, with maturities less than or equal to 90 days
A29: Issuances of notes payable, with maturities greater than 90 days
A30: Reductions of notes payable, with maturities greater than 90 days
A31: Issuances of long-term debt
A32: Reductions of long-term debt
A33: Net issuances of common stock
A34: Common stock repurchases
A35: Cash dividends
A36: Other
A37: Net cash used in financing activities | B37: =SUM(B28:B36) -> 0 | C37: =SUM(C28:C36) -> 0 | D37: =SUM(D28:D36) -> 0 | E37: =getformula(D37) -> <-- =SUM(D28:D36)
A40: Effect of exchange rate changes on cash and cash equivalents | B40: -35 | C40: 6 | D40: -12
A41: Increase in cash and cash equivalents | B41: =B37+B25+B20+B40 -> 973 | C41: =C37+C25+C20+C40 -> 531 | D41: =D37+D25+D20+D40 -> 1259 | E41: =getformula(D41) -> <-- =D37+D25+D20+D40
A43: Interest Expense | B43: ='Kellogg income statement'!B9 -> 233 | C43: ='Kellogg income statement'!C9 -> 248 | D43: ='Kellogg income statement'!D9 -> 295 | E43: =getformula(D43) -> <-- ='Kellogg income statement'!D9
A44: Tax rate | B44: ='Kellogg income statement'!B12/'Kellogg income statement'!B11 -> 0.2904157044 | C44: ='Kellogg income statement'!C12/'Kellogg income statement'!C11 -> 0.2881745121 | D44: ='Kellogg income statement'!D12/'Kellogg income statement'!D11 -> 0.2826603325 | E44: =getformula(D44) -> <-- ='Kellogg income statement'!D12/'Kellogg income statement'!D11
A46: FCFF | B46: =B41+B43*(1-B44) -> 1138.333141 | C46: =C41+C43*(1-C44) -> 707.532721 | D46: 1470.615202 | E46: =getformula(D46) -> <-- =D41+D43*(1-D44)

Sheet Kellogg WACC
A1: COMPUTING THE WACC FOR KELLOGG
A2: Shares outstanding | B2: 357.3 | C2: <-- Million | D2: Kellogg debt and rD
A3: Share price, 30 December 2011 | B3: 50.57 | D3: Debt | E3: 2011 | F3: 2010
A4: Equity value, E | B4: =B2*B3 -> 18068.661 | C4: =getformula(B4)&", million $" -> <-- =B2*B3, million $ | D4: Financial debt | E4: 6032 | F4: 5904
A5: Net debt financial debt, D | B5: =E6 -> 5572 | C5: <-- Million $ | D5: Cash | E5: 460 | F5: 444
A6: Tax rate, TC | B6: ='Kellogg CSCF'!B44 -> 0.2904157044 | C6: =getformula(B6) -> <-- ='Kellogg CSCF'!B44 | D6: Net financial debt | E6: =E4-E5 -> 5572 | F6: =F4-F5 -> 5460 | G6: =getformula(F6) -> <-- =F4-F5
A7: Cost of debt, rD | B7: =E9 -> 0.04224075417 | C7: =getformula(B7) -> <-- =E9
A8: Expected market return, E(rM) | B8: 0.08 | D8: Net interest paid | E8: ='Kellogg income statement'!B9 -> 233
A9: Risk free rate, rf | B9: 0.01 | D9: rD | E9: =E8/AVERAGE(E6:F6) -> 0.04224075417 | F9: =getformula(E9) -> <-- =E8/AVERAGE(E6:F6)
A10: Equity beta, b | B10: 0.36
A12: WACC based on Gordon per-share dividends
A13: Current dividend/share | B13: ='Kellogg dividends'!E6 -> 1.72 | C13: =getformula(B13) -> <-- ='Kellogg dividends'!E6
A14: Growth rate | B14: ='Kellogg dividends'!E12 -> 0.05447137183 | C14: =getformula(B14) -> <-- ='Kellogg dividends'!E12
A15: Cost of equity, rE | B15: =B13*(1+B14)/B3+B14 -> 0.09033632654 | C15: =getformula(B15) -> <-- =B13*(1+B14)/B3+B14
A16: WACC | B16: =B5/(B5+B4)*B7*(1-B6)+B15*(B4/(B4+B5)) -> 0.07610904408 | C16: =getformula(B16) -> <-- =B5/(B5+B4)*B7*(1-B6)+B15*(B4/(B4+B5))
A18: WACC based on classic CAPM
A19: Cost of equity, rE | B19: =B9+B10*(B8-B9) -> 0.0352 | C19: =getformula(B19) -> <-- =B9+B10*(B8-B9)
A20: WACC | B20: =B5/(B5+B4)*B7*(1-B6)+B4/(B4+B5)*B19 -> 0.03396810762 | C20: =getformula(B20) -> <-- =B5/(B5+B4)*B7*(1-B6)+B4/(B4+B5)*B19
A23: Estimated WACC? | B23: =AVERAGE(B16,B20) -> 0.05503857585 | C23: =getformula(B23) -> <-- =AVERAGE(B16,B20)

Sheet Kellogg dividends
A1: TEN YEARS OF KELLOGG DIVIDENDS
A3: Date | B3: Dividends | D3: Computation of Gordon rE
A4: 2001-11-28 | B4: 0.253 | D4: Current dividend
A5: 2002-02-28 | B5: 0.253 | D5: Quarterly | E5: =B44 -> 0.43
A6: 2002-05-29 | B6: 0.253 | D6: Annual | E6: =E5*4 -> 1.72 | F6: =getformula(E6) -> <-- =E5*4
A7: 2002-08-28 | B7: 0.253 | D7: Current stock price | E7: 50.57
A8: 2002-11-26 | B8: 0.253
A9: 2003-02-27 | B9: 0.253 | D9: Dividend growth rate
A10: 2003-05-28 | B10: 0.253 | D10: 10-year growth
A11: 2003-08-27 | B11: 0.253 | D11: Quarterly | E11: =(B44/B4)^(1/(COUNT(B4:B44)-1))-1 -> 0.01334819524 | F11: =getformula(E11) -> <-- =(B44/B4)^(1/(COUNT(B4:B44)-1))-1
A12: 2003-11-25 | B12: 0.253 | D12: Annual | E12: =(1+E11)^4-1 -> 0.05447137183 | F12: =getformula(E12) -> <-- =(1+E11)^4-1
A13: 2004-03-02 | B13: 0.253 | D13: 5-year growth
A14: 2004-05-27 | B14: 0.253 | D14: Quarterly | E14: =(B44/B24)^(1/(COUNT(B24:B44)-1))-1 -> 0.01971491902 | F14: =getformula(E14) -> <-- =(B44/B24)^(1/(COUNT(B24:B44)-1))-1
A15: 2004-08-27 | B15: 0.253 | D15: Annual | E15: =(1+E14)^4-1 -> 0.08122254637 | F15: =getformula(E15) -> <-- =(1+E14)^4-1
A16: 2004-11-23 | B16: 0.253
A17: 2005-02-25 | B17: 0.253 | D17: Gordon rE
A18: 2005-05-27 | B18: 0.253 | D18: Based on 10-year growth | E18: =E6*(1+E12)/E7+E12 -> 0.09033632654 | F18: =getformula(E18) -> <-- =E6*(1+E12)/E7+E12
A19: 2005-08-30 | B19: 0.278 | D19: Based on 5-year growth | E19: =E6*(1+E15)/E7+E15 -> 0.117997369 | F19: =getformula(E19) -> <-- =E6*(1+E15)/E7+E15
A20: 2005-11-29 | B20: 0.278
A21: 2006-02-27 | B21: 0.278
A22: 2006-05-30 | B22: 0.278
A23: 2006-08-30 | B23: 0.291
A24: 2006-11-29 | B24: 0.291
A25: 2007-02-27 | B25: 0.291
A26: 2007-05-30 | B26: 0.291
A27: 2007-08-29 | B27: 0.31
A28: 2007-11-29 | B28: 0.31
A29: 2008-02-29 | B29: 0.31
A30: 2008-05-29 | B30: 0.31
A31: 2008-08-28 | B31: 0.34
A32: 2008-12-01 | B32: 0.34
A33: 2009-02-27 | B33: 0.34
A34: 2009-05-28 | B34: 0.34
A35: 2009-08-28 | B35: 0.375
A36: 2009-11-30 | B36: 0.375
A37: 2010-02-26 | B37: 0.375
A38: 2010-05-27 | B38: 0.375
A39: 2010-08-30 | B39: 0.405
A40: 2010-11-29 | B40: 0.405
A41: 2011-02-25 | B41: 0.405
A42: 2011-05-27 | B42: 0.405
A43: 2011-08-30 | B43: 0.43
A44: 2011-11-29 | B44: 0.43
